[Event "Titled Tuesday Blitz December 20 Early 2022"]
[White "Harkness, Bryan"]
[Black "Kotofeyca"]
[WhiteFideId "444227"]
[WhiteElo "1935"]
[BlackElo "2372"]
[Result "0-1"]
[Round "07"]
[TimeControl "180+2"]
[Date "2022.12.20"]
[WhiteClock "0:00:13"]
[BlackClock "0:01:06"]

1. d4 {[%clk 0:03:00]}  d5 {[%clk 0:03:00]} 2. c4 {[%clk 0:03:00]}  c6 {[%clk 0:03:01]} 3. Nf3 {[%clk 0:03:00]}  Nf6 {[%clk 0:03:01]} 4. Nc3 {[%clk 0:02:59]}  dxc4 {[%clk 0:03:01]} 5. a4 {[%clk 0:02:59]}  Bg4 {[%clk 0:03:01]} 6. Ne5 {[%clk 0:02:57]}  Bh5 {[%clk 0:03:01]} 7. Nxc4 {[%clk 0:02:51]}  e6 {[%clk 0:03:01]} 8. f3 {[%clk 0:02:38]}  c5 {[%clk 0:02:59]} 9. dxc5 {[%clk 0:02:20]}  Qxd1+ {[%clk 0:02:57]} 10. Nxd1 {[%clk 0:02:17]}  Bxc5 {[%clk 0:02:58]} 11. e4 {[%clk 0:02:06]}  Nc6 {[%clk 0:02:56]} 12. Be3 {[%clk 0:02:05]}  Nd7 {[%clk 0:02:44]} 13. Be2 {[%clk 0:01:41]}  Nd4 {[%clk 0:02:27]} 14. Bxd4 {[%clk 0:01:38]}  Bxd4 {[%clk 0:02:27]} 15. Nd6+ {[%clk 0:01:33]}  Ke7 {[%clk 0:02:27]} 16. Nb5 {[%clk 0:01:32]}  Bc5 {[%clk 0:02:17]} 17. Ndc3 {[%clk 0:01:25]}  a6 {[%clk 0:02:05]} 18. Na3 {[%clk 0:01:25]}  Rac8 {[%clk 0:01:57]} 19. Nc4 {[%clk 0:01:19]}  Bb4 {[%clk 0:01:53]} 20. Kd2 {[%clk 0:01:14]}  Nc5 {[%clk 0:01:49]} 21. Kc2 {[%clk 0:01:11]}  Bxc3 {[%clk 0:01:37]} 22. bxc3 {[%clk 0:01:10]}  Nxe4 {[%clk 0:01:33]} 23. Rhe1 {[%clk 0:00:32]}  Nc5 {[%clk 0:01:32]} 24. Nb6 {[%clk 0:00:31]}  Bg6+ {[%clk 0:01:29]} 25. Kb2 {[%clk 0:00:26]}  Rc6 {[%clk 0:01:25]} 26. a5 {[%clk 0:00:25]}  Rd8 {[%clk 0:01:25]} 27. Red1 {[%clk 0:00:23]}  Nd3+ {[%clk 0:01:10]} 28. Bxd3 {[%clk 0:00:20]}  Bxd3 {[%clk 0:01:11]} 29. Rac1 {[%clk 0:00:18]}  Rc5 {[%clk 0:01:10]} 30. Rd2 {[%clk 0:00:14]}  Rb5+ {[%clk 0:01:07]} 31. Ka3 {[%clk 0:00:13]}  Rxa5+ {[%clk 0:01:07]} 32. Na4 {[%clk 0:00:13]}  Bb5 {[%clk 0:01:06]} 33. Rd4 {[%clk 0:00:13]}  Rxd4 {[%clk 0:01:05]} 34. cxd4 {[%clk 0:00:13]}  Rxa4+ {[%clk 0:01:06]} 35. Kb2 {[%clk 0:00:13]}  Rxd4 {[%clk 0:01:07]} 36. Rc7+ {[%clk 0:00:12]}  Rd7 {[%clk 0:01:07]} 37. Rxb7 {[%clk 0:00:13]}  Rxb7 {[%clk 0:01:06]} 0-1


[Site "https://www.chess.com"]

[Event "Titled Tuesday Blitz December 20 Early 2022"]
[White "Harsha_Bharathakoti"]
[Black "Brunstein, Sandrine"]
[BlackFideId "625574"]
[WhiteElo "2867"]
[BlackElo "1990"]
[Result "1-0"]
[Round "07"]
[TimeControl "180+2"]
[Date "2022.12.20"]
[WhiteClock "0:00:07"]
[BlackClock "0:00:05"]

1. e4 {[%clk 0:03:00]}  c5 {[%clk 0:03:00]} 2. Nf3 {[%clk 0:02:59]}  d6 {[%clk 0:03:00]} 3. Bb5+ {[%clk 0:02:58]}  Bd7 {[%clk 0:03:00]} 4. Bxd7+ {[%clk 0:02:57]}  Qxd7 {[%clk 0:03:01]} 5. c4 {[%clk 0:02:57]}  e5 {[%clk 0:03:01]} 6. Nc3 {[%clk 0:02:55]}  Nc6 {[%clk 0:03:02]} 7. d3 {[%clk 0:02:53]}  Be7 {[%clk 0:03:02]} 8. a3 {[%clk 0:02:49]}  Bd8 {[%clk 0:03:01]} 9. O-O {[%clk 0:02:43]}  Nge7 {[%clk 0:03:02]} 10. Rb1 {[%clk 0:02:40]}  O-O {[%clk 0:03:02]} 11. b4 {[%clk 0:02:40]}  f5 {[%clk 0:02:59]} 12. bxc5 {[%clk 0:02:38]}  dxc5 {[%clk 0:02:59]} 13. Nd5 {[%clk 0:02:37]}  b6 {[%clk 0:02:37]} 14. Re1 {[%clk 0:02:31]}  f4 {[%clk 0:02:32]} 15. a4 {[%clk 0:02:14]}  Ng6 {[%clk 0:02:24]} 16. Bd2 {[%clk 0:02:10]}  Nd4 {[%clk 0:01:19]} 17. Nxd4 {[%clk 0:01:52]}  cxd4 {[%clk 0:01:16]} 18. f3 {[%clk 0:01:49]}  Rc8 {[%clk 0:01:05]} 19. a5 {[%clk 0:01:43]}  bxa5 {[%clk 0:01:04]} 20. Qb3 {[%clk 0:01:40]}  Nh4 {[%clk 0:00:58]} 21. Re2 {[%clk 0:01:31]}  Qe6 {[%clk 0:00:30]} 22. Be1 {[%clk 0:01:26]}  Kh8 {[%clk 0:00:29]} 23. Qa3 {[%clk 0:01:23]}  Rg8 {[%clk 0:00:13]} 24. Rb7 {[%clk 0:01:20]}  Qg6 {[%clk 0:00:12]} 25. Kf1 {[%clk 0:01:05]}  Qh5 {[%clk 0:00:13]} 26. Bxh4 {[%clk 0:00:45]}  Bxh4 {[%clk 0:00:13]} 27. Rxa7 {[%clk 0:00:28]}  Bd8 {[%clk 0:00:11]} 28. h3 {[%clk 0:00:24]}  Rc6 {[%clk 0:00:08]} 29. Ra8 {[%clk 0:00:18]}  Qf7 {[%clk 0:00:08]} 30. Rb2 {[%clk 0:00:17]}  h6 {[%clk 0:00:02]} 31. Rbb8 {[%clk 0:00:17]}  Qd7 {[%clk 0:00:02]} 32. Qa4 {[%clk 0:00:09]}  Qd6 {[%clk 0:00:02]} 33. Rxd8 {[%clk 0:00:08]}  Rxd8 {[%clk 0:00:03]} 34. Rxd8+ {[%clk 0:00:09]}  Qxd8 {[%clk 0:00:04]} 35. Qxc6 {[%clk 0:00:10]}  Qb8 {[%clk 0:00:04]} 36. Qb6 {[%clk 0:00:07]}  Qe8 {[%clk 0:00:05]} 37. Qxa5 {[%clk 0:00:07]} 1-0


[Site "https://www.chess.com"]

[Event "Titled Tuesday Blitz December 20 Early 2022"]
[White "Hasangatin_Ramil"]
[Black "Karjakin, Sergey"]
[BlackFideId "14109603"]
[WhiteElo "2705"]
[BlackElo "2747"]
[Result "0-1"]
[Round "07"]
[TimeControl "180+2"]
[Date "2022.12.20"]
[WhiteClock "0:00:04"]
[BlackClock "0:00:21"]

1. e4 {[%clk 0:03:00]}  c5 {[%clk 0:02:59]} 2. Nf3 {[%clk 0:03:00]}  d6 {[%clk 0:03:00]} 3. d4 {[%clk 0:02:59]}  cxd4 {[%clk 0:03:01]} 4. Qxd4 {[%clk 0:03:00]}  Nf6 {[%clk 0:02:58]} 5. Bb5+ {[%clk 0:02:59]}  Nc6 {[%clk 0:02:52]} 6. c4 {[%clk 0:02:51]}  e6 {[%clk 0:02:43]} 7. Nc3 {[%clk 0:02:49]}  Bd7 {[%clk 0:02:39]} 8. Bxc6 {[%clk 0:02:45]}  Bxc6 {[%clk 0:02:40]} 9. Bg5 {[%clk 0:02:42]}  Be7 {[%clk 0:02:39]} 10. O-O {[%clk 0:02:38]}  O-O {[%clk 0:02:37]} 11. Rfd1 {[%clk 0:02:34]}  a6 {[%clk 0:02:29]} 12. Qd3 {[%clk 0:02:20]}  Rc8 {[%clk 0:02:26]} 13. Nd4 {[%clk 0:02:20]}  Bd7 {[%clk 0:02:22]} 14. Rac1 {[%clk 0:02:15]}  Qa5 {[%clk 0:02:22]} 15. Bd2 {[%clk 0:02:09]}  Qc7 {[%clk 0:02:21]} 16. b3 {[%clk 0:02:09]}  Qb8 {[%clk 0:02:18]} 17. a4 {[%clk 0:02:07]}  Bc6 {[%clk 0:02:10]} 18. Bg5 {[%clk 0:02:05]}  Rfe8 {[%clk 0:02:07]} 19. h3 {[%clk 0:01:42]}  Bd7 {[%clk 0:01:52]} 20. Nde2 {[%clk 0:01:39]}  Bc6 {[%clk 0:01:38]} 21. Bxf6 {[%clk 0:01:37]}  Bxf6 {[%clk 0:01:38]} 22. Qxd6 {[%clk 0:01:36]}  Qa7 {[%clk 0:01:38]} 23. Qf4 {[%clk 0:01:26]}  Qc5 {[%clk 0:01:37]} 24. Qe3 {[%clk 0:01:21]}  b6 {[%clk 0:01:14]} 25. Nd4 {[%clk 0:01:13]}  Bb7 {[%clk 0:01:14]} 26. Nf3 {[%clk 0:01:13]}  Qxe3 {[%clk 0:01:10]} 27. fxe3 {[%clk 0:01:14]}  Bxc3 {[%clk 0:01:10]} 28. Rxc3 {[%clk 0:01:15]}  Bxe4 {[%clk 0:01:10]} 29. Rd6 {[%clk 0:01:08]}  Rb8 {[%clk 0:00:45]} 30. a5 {[%clk 0:01:06]}  bxa5 {[%clk 0:00:45]} 31. Rxa6 {[%clk 0:01:06]}  Ra8 {[%clk 0:00:45]} 32. Rxa8 {[%clk 0:00:56]}  Rxa8 {[%clk 0:00:46]} 33. Nd2 {[%clk 0:00:51]}  Bc6 {[%clk 0:00:45]} 34. Rd3 {[%clk 0:00:49]}  Kf8 {[%clk 0:00:43]} 35. Rd6 {[%clk 0:00:48]}  Rc8 {[%clk 0:00:42]} 36. g4 {[%clk 0:00:28]}  Ke7 {[%clk 0:00:41]} 37. Rd3 {[%clk 0:00:28]}  h5 {[%clk 0:00:39]} 38. Kf2 {[%clk 0:00:23]}  hxg4 {[%clk 0:00:36]} 39. hxg4 {[%clk 0:00:24]}  Rh8 {[%clk 0:00:36]} 40. Nf3 {[%clk 0:00:23]}  f6 {[%clk 0:00:34]} 41. Rd2 {[%clk 0:00:17]}  Rh3 {[%clk 0:00:33]} 42. Nd4 {[%clk 0:00:17]}  Be4 {[%clk 0:00:33]} 43. Nb5 {[%clk 0:00:08]}  g5 {[%clk 0:00:29]} 44. Rd6 {[%clk 0:00:07]}  f5 {[%clk 0:00:26]} 45. gxf5 {[%clk 0:00:06]}  exf5 {[%clk 0:00:26]} 46. Ra6 {[%clk 0:00:05]}  g4 {[%clk 0:00:25]} 47. Rg6 {[%clk 0:00:04]}  Kf7 {[%clk 0:00:26]} 48. Rg5 {[%clk 0:00:05]}  Kf6 {[%clk 0:00:26]} 49. Rg8 {[%clk 0:00:05]}  Rf3+ {[%clk 0:00:25]} 50. Ke2 {[%clk 0:00:05]}  g3 {[%clk 0:00:25]} 51. Nd6 {[%clk 0:00:05]}  Rf2+ {[%clk 0:00:26]} 52. Ke1 {[%clk 0:00:05]}  Rf3 {[%clk 0:00:24]} 53. Ke2 {[%clk 0:00:04]}  Ke5 {[%clk 0:00:20]} 54. Nxe4 {[%clk 0:00:03]}  fxe4 {[%clk 0:00:21]} 55. Rg5+ {[%clk 0:00:03]}  Kf6 {[%clk 0:00:20]} 56. Rg4 {[%clk 0:00:03]}  Kf5 {[%clk 0:00:20]} 57. Rf4+ {[%clk 0:00:03]}  Rxf4 {[%clk 0:00:19]} 58. exf4 {[%clk 0:00:03]}  Kxf4 {[%clk 0:00:20]} 59. c5 {[%clk 0:00:04]}  Ke5 {[%clk 0:00:21]} 0-1


[Site "https://www.chess.com"]

[Event "Titled Tuesday Blitz December 20 Early 2022"]
[White "HashtagChess"]
[Black "GregLeBarbare"]
[WhiteElo "1812"]
[BlackElo "2242"]
[Result "0-1"]
[Round "07"]
[TimeControl "180+2"]
[Date "2022.12.20"]
[WhiteClock "0:00:46"]
[BlackClock "0:01:46"]

1. e4 {[%clk 0:03:00]}  e6 {[%clk 0:02:45]} 2. d4 {[%clk 0:03:00]}  d5 {[%clk 0:02:44]} 3. e5 {[%clk 0:03:00]}  c5 {[%clk 0:02:44]} 4. c3 {[%clk 0:02:59]}  Nc6 {[%clk 0:02:44]} 5. Nf3 {[%clk 0:02:59]}  Bd7 {[%clk 0:02:44]} 6. Bd3 {[%clk 0:02:53]}  Rc8 {[%clk 0:02:44]} 7. O-O {[%clk 0:02:51]}  cxd4 {[%clk 0:02:44]} 8. cxd4 {[%clk 0:02:51]}  Nb4 {[%clk 0:02:44]} 9. a3 {[%clk 0:02:46]}  Nxd3 {[%clk 0:02:44]} 10. Qxd3 {[%clk 0:02:47]}  Ne7 {[%clk 0:02:41]} 11. Bg5 {[%clk 0:02:46]}  h6 {[%clk 0:02:41]} 12. Bh4 {[%clk 0:02:46]}  Qb6 {[%clk 0:02:40]} 13. Qd2 {[%clk 0:02:32]}  Nf5 {[%clk 0:02:39]} 14. Bg3 {[%clk 0:02:13]}  Be7 {[%clk 0:02:31]} 15. Nc3 {[%clk 0:02:01]}  O-O {[%clk 0:02:31]} 16. Rac1 {[%clk 0:01:45]}  Rc4 {[%clk 0:02:31]} 17. Rfd1 {[%clk 0:01:37]}  Rfc8 {[%clk 0:02:30]} 18. Bf4 {[%clk 0:01:32]}  Qb3 {[%clk 0:02:20]} 19. g4 {[%clk 0:00:59]}  Nh4 {[%clk 0:02:10]} 20. Nxh4 {[%clk 0:00:59]}  Bxh4 {[%clk 0:02:11]} 21. g5 {[%clk 0:01:00]}  Bxg5 {[%clk 0:02:03]} 22. Bxg5 {[%clk 0:01:00]}  hxg5 {[%clk 0:02:04]} 23. Qxg5 {[%clk 0:01:00]}  Qxb2 {[%clk 0:02:02]} 24. Qe3 {[%clk 0:00:46]}  Rxc3 {[%clk 0:01:46]} 0-1


[Site "https://www.chess.com"]

[Event "Titled Tuesday Blitz December 20 Early 2022"]
[White "Ibarra Jerez, Jose Carlos"]
[Black "Sanan_Sjugirov"]
[WhiteFideId "2226332"]
[WhiteElo "2563"]
[BlackElo "2933"]
[Result "1-0"]
[Round "07"]
[TimeControl "180+2"]
[Date "2022.12.20"]
[WhiteClock "0:00:35"]
[BlackClock "0:00:03"]

1. e4 {[%clk 0:03:00]}  e5 {[%clk 0:02:58]} 2. Nf3 {[%clk 0:03:00]}  Nc6 {[%clk 0:02:59]} 3. d4 {[%clk 0:02:58]}  exd4 {[%clk 0:02:59]} 4. Nxd4 {[%clk 0:02:59]}  Nf6 {[%clk 0:02:58]} 5. Nxc6 {[%clk 0:02:58]}  bxc6 {[%clk 0:02:58]} 6. Bd3 {[%clk 0:02:57]}  d6 {[%clk 0:02:50]} 7. O-O {[%clk 0:02:56]}  Be7 {[%clk 0:02:49]} 8. Nc3 {[%clk 0:02:55]}  O-O {[%clk 0:02:49]} 9. f4 {[%clk 0:02:55]}  Nd7 {[%clk 0:02:48]} 10. Be3 {[%clk 0:02:44]}  Re8 {[%clk 0:02:40]} 11. Qd2 {[%clk 0:02:37]}  Bf6 {[%clk 0:02:36]} 12. Rae1 {[%clk 0:02:32]}  a5 {[%clk 0:02:31]} 13. e5 {[%clk 0:02:04]}  dxe5 {[%clk 0:02:27]} 14. f5 {[%clk 0:01:57]}  Ba6 {[%clk 0:02:14]} 15. Bxa6 {[%clk 0:01:53]}  Rxa6 {[%clk 0:02:13]} 16. Ne4 {[%clk 0:01:53]}  Qc8 {[%clk 0:02:01]} 17. Rd1 {[%clk 0:01:51]}  Nb6 {[%clk 0:01:43]} 18. Bg5 {[%clk 0:01:44]}  Nd5 {[%clk 0:00:26]} 19. c4 {[%clk 0:01:37]}  Nf4 {[%clk 0:00:18]} 20. Bxf6 {[%clk 0:01:23]}  Qxf5 {[%clk 0:00:18]} 21. Qd7 {[%clk 0:01:15]}  Qxd7 {[%clk 0:00:11]} 22. Rxd7 {[%clk 0:01:15]}  gxf6 {[%clk 0:00:07]} 23. Nxf6+ {[%clk 0:01:15]}  Kf8 {[%clk 0:00:07]} 24. Nxe8 {[%clk 0:01:10]}  Kxe8 {[%clk 0:00:08]} 25. Rxc7 {[%clk 0:01:09]}  Rb6 {[%clk 0:00:08]} 26. b3 {[%clk 0:01:08]}  a4 {[%clk 0:00:09]} 27. Re1 {[%clk 0:01:00]}  Ng6 {[%clk 0:00:07]} 28. c5 {[%clk 0:00:57]}  Rb5 {[%clk 0:00:05]} 29. Rxc6 {[%clk 0:00:54]}  axb3 {[%clk 0:00:05]} 30. axb3 {[%clk 0:00:51]}  Rxb3 {[%clk 0:00:06]} 31. Rc7 {[%clk 0:00:47]}  Rc3 {[%clk 0:00:05]} 32. Ra1 {[%clk 0:00:47]}  Kf8 {[%clk 0:00:05]} 33. Raa7 {[%clk 0:00:45]}  Nh8 {[%clk 0:00:03]} 34. h4 {[%clk 0:00:36]}  e4 {[%clk 0:00:03]} 35. h5 {[%clk 0:00:35]}  h6 {[%clk 0:00:03]} 36. Rc8+ {[%clk 0:00:34]}  Kg7 {[%clk 0:00:03]} 37. Raa8 {[%clk 0:00:35]}  e3 {[%clk 0:00:03]} 38. Kf1 {[%clk 0:00:35]} 1-0


[Site "https://www.chess.com"]

[Event "Titled Tuesday Blitz December 20 Early 2022"]
[White "Jacomet Rodriguez, Josep-M."]
[Black "gammagramma"]
[WhiteFideId "54509815"]
[WhiteElo "3034"]
[BlackElo "2716"]
[Result "1-0"]
[Round "07"]
[TimeControl "180+2"]
[Date "2022.12.20"]
[WhiteClock "0:01:25"]
[BlackClock "0:00:40"]

1. e4 {[%clk 0:03:00]}  Nc6 {[%clk 0:02:58]} 2. Nf3 {[%clk 0:03:01]}  d6 {[%clk 0:02:57]} 3. d4 {[%clk 0:03:02]}  Nf6 {[%clk 0:02:58]} 4. Nc3 {[%clk 0:03:02]}  Bg4 {[%clk 0:02:59]} 5. d5 {[%clk 0:03:01]}  Ne5 {[%clk 0:02:58]} 6. Bb5+ {[%clk 0:02:58]}  Ned7 {[%clk 0:02:53]} 7. h3 {[%clk 0:02:57]}  Bh5 {[%clk 0:02:52]} 8. Be3 {[%clk 0:02:54]}  e6 {[%clk 0:02:51]} 9. dxe6 {[%clk 0:02:51]}  fxe6 {[%clk 0:02:50]} 10. Bc4 {[%clk 0:02:51]}  Qe7 {[%clk 0:02:46]} 11. Bb3 {[%clk 0:02:50]}  Nc5 {[%clk 0:02:29]} 12. Bxc5 {[%clk 0:02:42]}  dxc5 {[%clk 0:02:30]} 13. Qd3 {[%clk 0:02:40]}  Rd8 {[%clk 0:02:27]} 14. Qe2 {[%clk 0:02:36]}  a6 {[%clk 0:01:50]} 15. g4 {[%clk 0:02:34]}  Bf7 {[%clk 0:01:48]} 16. a4 {[%clk 0:02:27]}  e5 {[%clk 0:01:42]} 17. Bxf7+ {[%clk 0:02:14]}  Qxf7 {[%clk 0:01:39]} 18. Nxe5 {[%clk 0:02:12]}  Qe6 {[%clk 0:01:37]} 19. Nf3 {[%clk 0:02:01]}  Be7 {[%clk 0:01:37]} 20. O-O {[%clk 0:02:00]}  O-O {[%clk 0:01:37]} 21. Ng5 {[%clk 0:02:00]}  Qe5 {[%clk 0:01:16]} 22. Qc4+ {[%clk 0:01:58]}  Nd5 {[%clk 0:01:16]} 23. Nxd5 {[%clk 0:01:43]}  Bxg5 {[%clk 0:01:16]} 24. f4 {[%clk 0:01:43]}  b5 {[%clk 0:01:01]} 25. axb5 {[%clk 0:01:42]}  axb5 {[%clk 0:01:01]} 26. fxe5 {[%clk 0:01:30]}  bxc4 {[%clk 0:01:01]} 27. Nxc7 {[%clk 0:01:29]}  Be3+ {[%clk 0:00:59]} 28. Kh1 {[%clk 0:01:28]}  Rf4 {[%clk 0:00:42]} 29. Rxf4 {[%clk 0:01:25]}  Bxf4 {[%clk 0:00:42]} 30. Ne6 {[%clk 0:01:26]}  Bxe5 {[%clk 0:00:40]} 31. Nxd8 {[%clk 0:01:25]} 1-0


[Site "https://www.chess.com"]

[Event "Titled Tuesday Blitz December 20 Early 2022"]
[White "JaloliddinIlkhomi"]
[Black "ShahxaibKhan"]
[WhiteElo "2533"]
[BlackElo "2382"]
[Result "0-1"]
[Round "07"]
[TimeControl "180+2"]
[Date "2022.12.20"]
[WhiteClock "0:00:02"]
[BlackClock "0:00:05"]

1. d4 {[%clk 0:03:00]}  Nf6 {[%clk 0:02:58]} 2. Bf4 {[%clk 0:02:57]}  e6 {[%clk 0:02:59]} 3. e3 {[%clk 0:02:57]}  d5 {[%clk 0:03:00]} 4. Nd2 {[%clk 0:02:57]}  Bd6 {[%clk 0:03:01]} 5. Bg3 {[%clk 0:02:57]}  c5 {[%clk 0:03:01]} 6. c3 {[%clk 0:02:56]}  Qc7 {[%clk 0:03:01]} 7. Ngf3 {[%clk 0:02:57]}  O-O {[%clk 0:03:01]} 8. Ne5 {[%clk 0:02:55]}  Nbd7 {[%clk 0:03:01]} 9. f4 {[%clk 0:02:56]}  Ne8 {[%clk 0:02:57]} 10. Bd3 {[%clk 0:02:55]}  c4 {[%clk 0:02:57]} 11. Bc2 {[%clk 0:02:54]}  b5 {[%clk 0:02:57]} 12. Ndf3 {[%clk 0:02:47]}  b4 {[%clk 0:02:55]} 13. Bxh7+ {[%clk 0:02:21]}  Kxh7 {[%clk 0:02:54]} 14. Ng5+ {[%clk 0:02:21]}  Kg8 {[%clk 0:02:54]} 15. Qh5 {[%clk 0:02:12]}  Nef6 {[%clk 0:02:50]} 16. Qh3 {[%clk 0:02:10]}  bxc3 {[%clk 0:02:14]} 17. bxc3 {[%clk 0:02:11]}  Qa5 {[%clk 0:01:58]} 18. Rc1 {[%clk 0:01:44]}  Ba3 {[%clk 0:01:55]} 19. Rc2 {[%clk 0:01:43]}  Qa4 {[%clk 0:01:55]} 20. Rf2 {[%clk 0:01:22]}  Rb8 {[%clk 0:01:49]} 21. O-O {[%clk 0:01:20]}  Rb2 {[%clk 0:01:47]} 22. f5 {[%clk 0:01:14]}  Rxf2 {[%clk 0:01:45]} 23. Rxf2 {[%clk 0:01:14]}  Bc1 {[%clk 0:01:39]} 24. Bf4 {[%clk 0:00:25]}  exf5 {[%clk 0:01:34]} 25. Rf1 {[%clk 0:00:12]}  Qc2 {[%clk 0:01:24]} 26. Nc6 {[%clk 0:00:10]}  Ba3 {[%clk 0:01:01]} 27. Be5 {[%clk 0:00:05]}  Bb7 {[%clk 0:00:43]} 28. Bxf6 {[%clk 0:00:04]}  Nxf6 {[%clk 0:00:44]} 29. Ne5 {[%clk 0:00:04]}  Bc8 {[%clk 0:00:20]} 30. Rf2 {[%clk 0:00:02]}  Qd1+ {[%clk 0:00:18]} 31. Rf1 {[%clk 0:00:02]}  Qe2 {[%clk 0:00:18]} 32. Qg3 {[%clk 0:00:03]}  Bb2 {[%clk 0:00:14]} 33. h4 {[%clk 0:00:02]}  Bxc3 {[%clk 0:00:13]} 34. Nc6 {[%clk 0:00:03]}  Be6 {[%clk 0:00:09]} 35. Ne7+ {[%clk 0:00:03]}  Kh8 {[%clk 0:00:08]} 36. Nxe6 {[%clk 0:00:03]}  fxe6 {[%clk 0:00:06]} 37. Ng6+ {[%clk 0:00:04]}  Kg8 {[%clk 0:00:06]} 38. Nxf8 {[%clk 0:00:04]}  Kxf8 {[%clk 0:00:07]} 39. Qb8+ {[%clk 0:00:04]}  Kf7 {[%clk 0:00:07]} 40. Rb1 {[%clk 0:00:04]}  Qxe3+ {[%clk 0:00:06]} 41. Kh1 {[%clk 0:00:04]}  Bxd4 {[%clk 0:00:06]} 42. h5 {[%clk 0:00:03]}  Ne4 {[%clk 0:00:05]} 43. Rb7+ {[%clk 0:00:03]}  Kf6 {[%clk 0:00:06]} 44. Qd8+ {[%clk 0:00:03]}  Ke5 {[%clk 0:00:06]} 45. Qb8+ {[%clk 0:00:04]}  Nd6 {[%clk 0:00:06]} 46. Rb1 {[%clk 0:00:02]}  Qg5 {[%clk 0:00:05]} 47. Qg8 {[%clk 0:00:02]}  Qh4# {[%clk 0:00:05]} 0-1


[Site "https://www.chess.com"]

[Event "Titled Tuesday Blitz December 20 Early 2022"]
[White "JoliyRoger"]
[Black "tylityli"]
[WhiteElo "2429"]
[BlackElo "2334"]
[Result "1-0"]
[Round "07"]
[TimeControl "180+2"]
[Date "2022.12.20"]
[WhiteClock "0:00:22"]
[BlackClock "0:00:02"]

1. d4 {[%clk 0:02:56]}  Nf6 {[%clk 0:02:59]} 2. c4 {[%clk 0:02:52]}  e6 {[%clk 0:02:59]} 3. Nf3 {[%clk 0:02:52]}  Bb4+ {[%clk 0:02:59]} 4. Bd2 {[%clk 0:02:52]}  Qe7 {[%clk 0:02:59]} 5. Nc3 {[%clk 0:02:51]}  O-O {[%clk 0:02:57]} 6. Qc2 {[%clk 0:02:46]}  d6 {[%clk 0:02:54]} 7. e4 {[%clk 0:02:46]}  e5 {[%clk 0:02:51]} 8. d5 {[%clk 0:02:43]}  a5 {[%clk 0:02:47]} 9. a3 {[%clk 0:02:36]}  Bxc3 {[%clk 0:02:46]} 10. Bxc3 {[%clk 0:02:35]}  a4 {[%clk 0:02:45]} 11. Be2 {[%clk 0:02:31]}  Nbd7 {[%clk 0:02:45]} 12. Bb4 {[%clk 0:02:30]}  b6 {[%clk 0:02:41]} 13. O-O {[%clk 0:02:30]}  Nc5 {[%clk 0:02:41]} 14. Bxc5 {[%clk 0:02:29]}  bxc5 {[%clk 0:02:40]} 15. Nd2 {[%clk 0:02:20]}  Bd7 {[%clk 0:02:38]} 16. Nb1 {[%clk 0:02:20]}  Ne8 {[%clk 0:02:21]} 17. Nc3 {[%clk 0:02:20]}  f5 {[%clk 0:02:19]} 18. f4 {[%clk 0:02:14]}  Nf6 {[%clk 0:01:39]} 19. exf5 {[%clk 0:02:05]}  exf4 {[%clk 0:01:34]} 20. Rxf4 {[%clk 0:02:05]}  Qe3+ {[%clk 0:01:29]} 21. Rf2 {[%clk 0:02:05]}  Rfe8 {[%clk 0:01:04]} 22. Qd3 {[%clk 0:01:51]}  Ng4 {[%clk 0:00:30]} 23. Qxe3 {[%clk 0:01:47]}  Nxe3 {[%clk 0:00:29]} 24. Bd3 {[%clk 0:01:44]}  Re5 {[%clk 0:00:26]} 25. Re1 {[%clk 0:01:28]}  Nxc4 {[%clk 0:00:14]} 26. Rxe5 {[%clk 0:01:13]}  Nxe5 {[%clk 0:00:14]} 27. Bc2 {[%clk 0:01:13]}  Kf7 {[%clk 0:00:09]} 28. h3 {[%clk 0:01:13]}  h5 {[%clk 0:00:08]} 29. g3 {[%clk 0:01:07]}  Kf6 {[%clk 0:00:08]} 30. Ne4+ {[%clk 0:01:05]}  Ke7 {[%clk 0:00:06]} 31. Kg2 {[%clk 0:00:49]}  Rb8 {[%clk 0:00:06]} 32. Bb1 {[%clk 0:00:45]}  Nc4 {[%clk 0:00:06]} 33. Bd3 {[%clk 0:00:24]}  Nxb2 {[%clk 0:00:05]} 34. Be2 {[%clk 0:00:25]}  c4 {[%clk 0:00:05]} 35. Bxh5 {[%clk 0:00:25]}  Nd3 {[%clk 0:00:04]} 36. Rc2 {[%clk 0:00:26]}  Rb2 {[%clk 0:00:04]} 37. Bd1 {[%clk 0:00:24]}  Rxc2+ {[%clk 0:00:03]} 38. Bxc2 {[%clk 0:00:25]}  Ne5 {[%clk 0:00:03]} 39. g4 {[%clk 0:00:25]}  g6 {[%clk 0:00:03]} 40. f6+ {[%clk 0:00:23]}  Kf7 {[%clk 0:00:02]} 41. g5 {[%clk 0:00:22]} 1-0


[Site "https://www.chess.com"]